bitfinex/quotes_BTCUSD_20241009
["timestamp","ask_amount","ask_price","bid_price","bid_amount"]
[1728466559677,0.16864494,62222.0,62221.0,0.013]
[1728466559891,0.26755133,62222.0,62221.0,0.013]
[1728466560132,0.1723824,62222.0,62221.0,0.013]
[1728466560798,0.1723824,62222.0,62221.0,0.018]
[1728466573509,0.1723824,62222.0,62221.0,0.013]
[1728466573711,0.1723824,62222.0,62221.0,0.018]
[1728466577049,0.16864494,62222.0,62221.0,0.018]
[1728466578471,0.1723824,62222.0,62221.0,0.018]
[1728466579896,0.22064617,62222.0,62221.0,0.018]
[1728466583942,0.22065097,62222.0,62221.0,0.018]
[1728466586307,0.22065097,62222.0,62221.0,0.013]
[1728466587225,0.33596051,62222.0,62221.0,0.013]
[1728466587487,0.33222305,62222.0,62221.0,0.013]
[1728466587960,0.21691351,62222.0,62221.0,0.018]
[1728466588232,0.22065097,62222.0,62221.0,0.018]
[1728466589896,0.22065097,62222.0,62221.0,0.013]
[1728466593776,0.22065097,62222.0,62221.0,0.018]
[1728466594221,0.22065255,62222.0,62221.0,0.018]
[1728466594673,0.1723824,62222.0,62221.0,0.018]
[1728466596425,0.4182096,62222.0,62221.0,0.013]
[1728466596637,0.30881544,62222.0,62221.0,0.013]
[1728466596859,0.2642824,62222.0,62221.0,0.013]
[1728466598411,0.1723824,62222.0,62221.0,0.013]
[1728466601900,0.16864494,62222.0,62221.0,0.1862]
[1728466608561,0.16864494,62222.0,62221.0,0.1862]
[1728466610723,0.16864494,62222.0,62221.0,0.013]
[1728466615884,0.16864494,62222.0,62221.0,0.13926171]
[1728466616143,0.00793094,62222.0,62221.0,0.23286171]
[1728466616351,0.16864494,62222.0,62221.0,0.30926171]
[1728466618534,0.00793094,62222.0,62221.0,0.30926171]
[1728466619451,0.00793094,62222.0,62221.0,0.62954781]
[1728466619650,0.000821,62222.0,62221.0,0.62954781]
[1728466622510,0.000821,62222.0,62221.0,0.46883081]
[1728466622932,0.000821,62222.0,62221.0,0.62954781]
[1728466625974,0.000821,62222.0,62221.0,0.46883081]
[1728466626669,0.000821,62222.0,62221.0,0.62954781]
[1728466626886,0.00791469,62222.0,62221.0,0.62954781]
[1728466627120,0.000821,62222.0,62221.0,0.46883081]
[1728466627552,0.000821,62222.0,62221.0,0.62954781]
[1728466629099,0.000821,62222.0,62221.0,0.3475691]
[1728466629324,0.000821,62222.0,62221.0,0.29883081]
[1728466629546,0.00791541,62222.0,62221.0,0.29883081]
[1728466629764,0.161535,62222.0,62221.0,0.13926171]
[1728466629990,0.21730169,62222.0,62221.0,0.13926171]
[1728466630483,0.16863294,62222.0,62221.0,0.013]
[1728466630707,0.39004467,62222.0,62221.0,0.013]
[1728466630922,0.48450721,62222.0,62221.0,0.013]
[1728466631566,0.38809465,62222.0,62221.0,0.013]
[1728466632431,0.67630358,62222.0,62221.0,0.013]
[1728466632660,0.75440358,62222.0,62221.0,0.013]
[1728466633823,0.75640358,62222.0,62221.0,0.013]
[1728466634048,0.75440358,62222.0,62221.0,0.013]
[1728466634303,0.72953976,62222.0,62221.0,0.013]
[1728466634746,0.44133083,62222.0,62221.0,0.013]
[1728466634969,0.34493294,62222.0,62221.0,0.013]
[1728466635421,0.41721815,62222.0,62221.0,0.013]
[1728466635644,0.41921815,62222.0,62221.0,0.013]
[1728466637551,0.34693294,62222.0,62221.0,0.013]
[1728466637728,0.48695548,62222.0,62221.0,0.013]
[1728466638802,0.64236892,62222.0,62221.0,0.013]
[1728466638939,0.71465413,62222.0,62221.0,0.013]
[1728466639363,0.64236892,62222.0,62221.0,0.013]
[1728466642055,0.71465413,62222.0,62221.0,0.013]
[1728466642709,0.71265413,62222.0,62221.0,0.013]
[1728466643579,0.64036892,62222.0,62221.0,0.013]
[1728466644445,0.64236892,62222.0,62221.0,0.013]
[1728466645359,0.64036892,62222.0,62221.0,0.013]
[1728466645831,0.74036892,62222.0,62221.0,0.013]
[1728466646269,0.74236892,62222.0,62221.0,0.013]
[1728466646705,0.86275949,62222.0,62221.0,0.013]
[1728466646927,0.72073695,62222.0,62221.0,0.013]
[1728466647593,0.72273695,62222.0,62221.0,0.013]
[1728466647809,0.72073695,62222.0,62221.0,0.013]
[1728466648243,0.72273695,62222.0,62221.0,0.013]
[1728466648454,0.72073695,62222.0,62221.0,0.013]
[1728466648706,0.56532351,62222.0,62221.0,0.013]
[1728466648934,0.5412124,62222.0,62221.0,0.013]
[1728466649176,0.34084208,62222.0,62221.0,0.013]
[1728466650088,0.26863294,62222.0,62221.0,0.013]
[1728466650281,0.2723704,62222.0,62221.0,0.013]
[1728466651405,0.32049383,62222.0,62221.0,0.013]
[1728466651654,0.31675637,62222.0,62221.0,0.013]
[1728466652315,0.26863294,62222.0,62221.0,0.013]
[1728466652532,0.2723704,62222.0,62221.0,0.013]
[1728466654405,0.39841735,62222.0,62221.0,0.013]
[1728466654638,0.85135504,62222.0,62221.0,0.013]
[1728466654864,0.87435504,62222.0,62221.0,0.013]
[1728466655529,0.87435504,62222.0,62213.0,0.2397794]
[1728466655530,0.260735,62214.0,62213.0,0.2397794]
[1728466655752,0.63151181,62214.0,62213.0,0.2397794]
[1728466655989,0.63479684,62214.0,62213.0,0.2397794]
[1728466656208,0.260738,62213.0,62212.0,0.001642]
[1728466656432,0.5968889,62213.0,62212.0,0.001642]
[1728466656650,0.60017371,62213.0,62212.0,0.001642]
[1728466656875,0.7530635,62213.0,62212.0,0.001642]
[1728466658241,0.7530635,62213.0,62212.0,0.002642]
[1728466658912,0.7530635,62213.0,62212.0,0.004642]
[1728466668507,0.42317371,62213.0,62212.0,0.004642]
[1728466676495,0.49537711,62213.0,62212.0,0.004642]
[1728466682209,0.49619811,62213.0,62212.0,0.004642]
[1728466683326,0.49619811,62213.0,62212.0,0.003642]
[1728466683765,0.50019811,62213.0,62212.0,0.003642]
[1728466683977,0.5412207,62213.0,62212.0,0.003642]
[1728466684202,0.5412207,62213.0,62212.0,0.001642]
[1728466684430,0.34478467,62213.0,62212.0,0.001642]
[1728466684656,0.27158127,62213.0,62212.0,0.001642]
[1728466684868,0.27231873,62213.0,62212.0,0.001642]
[1728466685329,0.27631873,62213.0,62212.0,0.001642]
[1728466685549,0.27231873,62213.0,62212.0,0.001642]
[1728466685766,0.27631873,62213.0,62212.0,0.001642]
[1728466685979,0.27731873,62213.0,62212.0,0.001642]
[1728466686419,0.27231873,62213.0,62212.0,0.001642]
[1728466686645,0.17231873,62213.0,62212.0,0.084342]
[1728466686863,0.17258127,62213.0,62212.0,0.084342]
[1728466687734,0.16858127,62213.0,62212.0,0.084342]
[1728466688172,0.17158127,62213.0,62212.0,0.084342]
[1728466688420,0.16858127,62213.0,62212.0,0.084342]
[1728466688634,0.16858127,62213.0,62212.0,0.086342]
[1728466689075,0.17258127,62213.0,62212.0,0.086342]
[1728466689520,0.16858127,62213.0,62212.0,0.086342]
[1728466689953,0.16858127,62213.0,62212.0,0.087342]
[1728466692803,0.17231873,62213.0,62212.0,0.087342]
[1728466698734,0.27072052,62213.0,62212.0,0.004642]
[1728466699439,0.17231873,62213.0,62212.0,0.004642]
[1728466706547,0.16858127,62213.0,62212.0,0.004642]
[1728466706774,0.16858127,62213.0,62212.0,0.098842]
[1728466706995,0.16858127,62213.0,62212.0,0.178842]
[1728466711880,0.17231873,62213.0,62212.0,0.178842]
[1728466712098,0.17231873,62213.0,62212.0,0.084642]
[1728466714517,0.16858127,62213.0,62212.0,0.084642]
[1728466714962,0.17231873,62213.0,62212.0,0.084642]
[1728466716387,0.16858127,62213.0,62212.0,0.084642]
[1728466716975,0.17231873,62213.0,62212.0,0.084642]
[1728466717471,0.22465886,62213.0,62212.0,0.004642]
[1728466717894,0.17231873,62213.0,62212.0,0.004642]
[1728466718519,0.17431873,62213.0,62212.0,0.004642]
[1728466719002,0.17324637,62213.0,62212.0,0.004642]
[1728466721413,0.17324637,62213.0,62212.0,0.004642]
[1728466740697,0.17324637,62213.0,62212.0,0.62445715]
[1728466740698,0.00877091,62213.0,62212.0,0.62445715]
[1728466740913,0.00877091,62213.0,62212.0,0.70174067]
[1728466741133,0.00130134,62215.0,62214.0,0.170735]
[1728466741361,0.00130134,62215.0,62214.0,0.50516242]
[1728466741627,0.00130134,62215.0,62214.0,0.50194844]
[1728466742502,0.00130134,62215.0,62214.0,0.50594844]
[1728466742716,0.00130134,62215.0,62214.0,0.50194844]
[1728466743653,0.00130134,62215.0,62214.0,0.49694844]
[1728466743889,0.00530134,62215.0,62214.0,0.50194844]
[1728466744271,0.00330134,62215.0,62214.0,0.57403307]
[1728466744514,0.00330134,62215.0,62214.0,0.57403228]
[1728466744729,0.00130134,62215.0,62214.0,0.57403228]
[1728466744941,0.00230134,62215.0,62214.0,0.57403228]
[1728466745427,0.00230134,62215.0,62214.0,0.55821051]
[1728466745853,0.00330134,62215.0,62214.0,0.51017817]
[1728466748055,0.00330134,62215.0,62214.0,0.50517817]
[1728466748343,0.00330134,62215.0,62214.0,0.51017817]
[1728466749106,0.00330134,62215.0,62214.0,0.51429805]
[1728466749739,0.00330134,62215.0,62214.0,0.50929805]
[1728466749953,0.00330134,62215.0,62214.0,0.51429805]
[1728466750167,0.00330134,62215.0,62214.0,0.50929805]
[1728466751088,0.00330134,62215.0,62214.0,0.51429805]
[1728466751299,0.00330134,62215.0,62214.0,0.50929805]
[1728466751721,0.00330134,62215.0,62214.0,0.51429805]
[1728466752193,0.00412234,62215.0,62214.0,0.51429805]
[1728466763574,0.00412234,62215.0,62214.0,0.34856305]
[1728466763853,0.00412234,62215.0,62214.0,0.50929805]
[1728466764059,0.00412234,62215.0,62214.0,0.34856305]
[1728466764266,0.01063417,62215.0,62214.0,0.50929805]
[1728466771019,0.01063417,62215.0,62214.0,0.50106832]
[1728466773900,0.01063417,62215.0,62214.0,0.16453332]
[1728466774129,0.17136617,62215.0,62214.0,0.16453332]
[1728466774356,0.01063417,62215.0,62214.0,0.16453332]
[1728466775811,0.17136617,62215.0,62214.0,0.005]
[1728466776667,0.16936617,62215.0,62214.0,0.005]
[1728466777105,0.17836617,62215.0,62214.0,0.005]
[1728466777321,0.17436617,62215.0,62214.0,0.005]
[1728466777566,0.15294778,62215.0,62214.0,0.12626171]
[1728466777777,0.15294778,62215.0,62214.0,0.13726171]
[1728466777989,0.15294778,62215.0,62214.0,0.13126171]
[1728466778487,0.15294778,62215.0,62214.0,0.13526171]
[1728466778724,0.15294778,62215.0,62214.0,0.14326171]
[1728466781236,0.15294778,62215.0,62214.0,0.29867515]
[1728466781237,0.00704264,62215.0,62214.0,0.29867515]
[1728466781449,0.00186867,62217.0,62216.0,0.16573]
[1728466781653,0.00186867,62217.0,62216.0,0.32435766]
[1728466781852,0.00186867,62217.0,62216.0,0.32114344]
[1728466783705,0.00186867,62217.0,62216.0,0.32714344]
[1728466784149,0.00186867,62217.0,62216.0,0.17341344]
[1728466784396,0.00186867,62217.0,62216.0,0.33735771]
[1728466784658,0.01030528,62217.0,62216.0,0.33414344]
[1728466784918,0.00186867,62217.0,62216.0,0.33414344]
[1728466787067,0.00186867,62217.0,62216.0,0.50674344]
[1728466787725,0.00186867,62217.0,62216.0,0.50074344]
[1728466787935,0.00186867,62217.0,62216.0,0.49374344]
[1728466788145,0.00286867,62217.0,62216.0,0.51574344]
[1728466788353,0.00286867,62217.0,62216.0,0.56380704]
[1728466788976,0.00286867,62217.0,62216.0,0.55180704]
[1728466789236,0.00286867,62217.0,62216.0,0.55780704]
[1728466789468,0.00368967,62217.0,62216.0,0.55780704]
[1728466789683,0.00268967,62217.0,62216.0,0.54780704]
[1728466789892,0.00268967,62217.0,62216.0,0.55180704]
[1728466790325,0.00268967,62217.0,62216.0,0.54780704]
[1728466790545,0.00268967,62217.0,62216.0,0.54180704]
[1728466790752,0.00268967,62217.0,62216.0,0.55280704]
[1728466790960,0.00268967,62217.0,62216.0,0.56480704]
[1728466791189,0.00268967,62217.0,62216.0,0.55280704]
[1728466791650,0.00268967,62217.0,62216.0,0.56580704]
[1728466796043,0.00268967,62217.0,62216.0,0.68706875]
[1728466797910,0.00268967,62217.0,62216.0,0.56580704]
[1728466798118,0.00268967,62217.0,62216.0,0.35373875]
[1728466798331,0.00268967,62217.0,62216.0,0.30567515]
[1728466798543,0.00268967,62217.0,62216.0,0.35373875]
[1728466798751,0.01115229,62217.0,62216.0,0.51446875]
[1728466798962,0.00268967,62217.0,62216.0,0.51450559]
[1728466799601,0.00268967,62217.0,62216.0,0.53855581]
[1728466800052,0.00268967,62217.0,62216.0,0.46640515]
[1728466800677,0.00268967,62217.0,62216.0,0.51451072]
[1728466802016,0.00268967,62217.0,62216.0,0.46640515]
[1728466802431,0.00268967,62217.0,62216.0,0.51450699]
[1728466802654,0.00268967,62217.0,62216.0,0.46640515]
[1728466803651,0.00268967,62217.0,62216.0,0.51450762]
[1728466804429,0.00268967,62217.0,62216.0,0.46640515]
[1728466805955,0.00268967,62217.0,62216.0,0.5145072]
[1728466806171,0.00268967,62217.0,62216.0,0.46640515]
[1728466806391,0.00268967,62217.0,62216.0,0.64680515]
[1728466806626,0.00268967,62217.0,62216.0,0.74680515]
[1728466807278,0.00463205,62222.0,62221.0,0.165717]
[1728466807499,0.0067928,62233.0,62227.0,0.165701]
[1728466807730,0.0067928,62233.0,62227.0,0.42932787]
[1728466807944,0.0067928,62233.0,62227.0,0.42611444]
[1728466808607,0.0067928,62233.0,62227.0,0.44911444]
[1728466809372,0.0067928,62233.0,62229.0,0.188696]
[1728466809573,0.0067928,62233.0,62229.0,0.54718434]
[1728466809785,0.0067928,62233.0,62229.0,0.54897115]
[1728466810017,0.0067928,62233.0,62229.0,0.54397115]
[1728466815778,0.0067928,62233.0,62229.0,0.55219887]
[1728466816326,0.0067928,62233.0,62229.0,0.55636093]
[1728466817512,0.0067928,62233.0,62229.0,0.43509922]
[1728466817717,0.0067928,62233.0,62229.0,0.45476093]
[1728466826360,0.00731412,62230.0,62229.0,0.45476093]
[1728466827248,0.01766896,62230.0,62229.0,0.45476093]
[1728466827499,0.00731412,62230.0,62229.0,0.45476093]
[1728466828608,0.01766608,62230.0,62229.0,0.1645755]
[1728466828825,0.26050812,62230.0,62229.0,0.005]
[1728466829054,0.34785962,62230.0,62229.0,0.005]
[1728466830158,0.34785962,62230.0,62229.0,0.017]
[1728466830456,0.34785962,62230.0,62229.0,0.03]
[1728466830905,0.34785962,62230.0,62229.0,0.017]
[1728466831205,0.34785962,62230.0,62229.0,0.011]
[1728466831513,0.34785962,62230.0,62229.0,0.01]
[1728466831743,0.34305013,62230.0,62229.0,0.016]
[1728466831956,0.18235613,62230.0,62229.0,0.011]
[1728466832191,0.34305013,62230.0,62229.0,0.011]
[1728466832590,0.34305013,62230.0,62229.0,0.016]
[1728466833362,0.10535613,62230.0,62229.0,0.016]
[1728466833590,0.10535613,62230.0,62229.0,0.33210944]
[1728466833591,0.01285613,62230.0,62229.0,0.33210944]
[1728466834063,0.00731412,62230.0,62229.0,0.33210944]
[1728466843012,0.00731412,62230.0,62229.0,0.45337115]
[1728466858508,0.00731412,62230.0,62229.0,0.50137183]
[1728466858961,0.00731412,62230.0,62229.0,0.45337115]
[1728466859144,0.00731412,62230.0,62229.0,0.52037217]
[1728466859382,0.00731412,62230.0,62229.0,0.44837115]
[1728466859593,0.00731412,62230.0,62229.0,0.44237115]
[1728466859950,0.00731412,62230.0,62229.0,0.45537115]
[1728466860209,0.00731412,62230.0,62229.0,0.44237115]
[1728466860411,0.00731412,62230.0,62229.0,0.45337115]
[1728466860771,0.00731412,62230.0,62229.0,0.44237115]
[1728466863642,0.00731412,62230.0,62229.0,0.56237285]
[1728466865302,0.00731412,62230.0,62229.0,0.44237115]
[1728466865759,0.00731412,62230.0,62229.0,0.56237285]
[1728466866182,0.00731412,62230.0,62229.0,0.44237115]
[1728466866600,0.00731412,62230.0,62229.0,0.53851404]
[1728466869481,0.00731412,62230.0,62229.0,0.53853837]
[1728466874330,0.00731412,62230.0,62229.0,0.44237115]
[1728466874776,0.00731412,62230.0,62229.0,0.53854507]
[1728466875425,0.00731412,62230.0,62229.0,0.44237115]
[1728466879638,0.00731412,62230.0,62229.0,0.56261152]
[1728466881648,0.00731412,62230.0,62229.0,0.44237115]
[1728466882571,0.00731412,62230.0,62229.0,0.53857528]
[1728466887087,0.00731412,62230.0,62229.0,0.16041344]
[1728466887282,0.00731412,62230.0,62229.0,0.23257338]
[1728466887503,0.01280879,62230.0,62229.0,0.28167515]
[1728466888127,0.01280879,62230.0,62229.0,0.44237115]
[1728466888531,0.00731412,62230.0,62229.0,0.44237115]
[1728466889068,0.00731412,62230.0,62229.0,0.49048133]
[1728466889215,0.01280745,62230.0,62229.0,0.49048133]
[1728466890622,0.01280745,62230.0,62229.0,0.32978533]
[1728466891027,0.17350145,62230.0,62229.0,0.32978533]
[1728466891481,0.01280745,62230.0,62229.0,0.32978533]
[1728466892136,0.11060745,62230.0,62229.0,0.32978533]
[1728466892772,0.01280745,62230.0,62229.0,0.32978533]
[1728466893530,0.17350145,62230.0,62229.0,0.32978533]
[1728466893927,0.17350145,62230.0,62229.0,0.28167515]
[1728466894358,0.01280745,62230.0,62229.0,0.28167515]
[1728466897216,0.01280745,62230.0,62229.0,0.44237115]
[1728466898304,0.00731412,62230.0,62229.0,0.44237115]
[1728466898735,0.01280552,62230.0,62229.0,0.44237115]
[1728466899167,0.00731412,62230.0,62229.0,0.90807113]
[1728466899404,0.00731412,62230.0,62229.0,0.82122311]
[1728466899609,0.00731412,62230.0,62229.0,0.72497115]
[1728466900710,0.00731412,62230.0,62229.0,0.74797115]
[1728466904579,0.00825497,62232.0,62229.0,0.74797115]
[1728466904580,0.00825497,62232.0,62231.0,0.464891]
[1728466904794,0.00825497,62232.0,62231.0,0.62030444]
[1728466905012,0.00825497,62232.0,62231.0,0.62530444]
[1728466906106,0.00825497,62232.0,62231.0,0.62830444]
[1728466906961,0.0085294,62235.0,62234.0,0.01]
[1728466907167,0.00929546,62241.0,62236.0,0.58213971]
[1728466907379,0.00929546,62241.0,62238.0,0.165673]
[1728466907591,0.00929546,62241.0,62238.0,0.32429925]
[1728466907805,0.00929546,62241.0,62238.0,0.32108644]
[1728466908430,0.00929546,62241.0,62238.0,0.41718188]
[1728466909543,0.00929546,62241.0,62238.0,0.4171653]
[1728466910170,0.00929546,62241.0,62238.0,0.42122209]
[1728466910378,0.00929546,62241.0,62238.0,0.32514323]
[1728466910826,0.00929546,62241.0,62238.0,0.3561573]
[1728466911029,0.00929546,62241.0,62238.0,0.4561573]
[1728466911255,0.00929546,62241.0,62238.0,0.5556573]
[1728466912309,0.00929546,62241.0,62238.0,0.62766433]
[1728466913597,0.00929546,62241.0,62238.0,0.70576433]
[1728466913768,0.00929546,62241.0,62238.0,0.70776433]
[1728466913988,0.00929546,62241.0,62238.0,0.70676433]
[1728466914543,0.00929546,62241.0,62238.0,0.70776433]
[1728466915343,0.00929546,62241.0,62238.0,0.6357573]
[1728466917097,0.00929546,62241.0,62238.0,0.70776433]
[1728466917307,0.00972841,62239.0,62238.0,0.6357573]
[1728466917544,0.00972841,62239.0,62238.0,0.70776433]
[1728466919102,0.00972841,62239.0,62238.0,0.71276433]
[1728466919312,0.01078464,62246.0,62242.0,0.40992471]
[1728466919527,0.01078464,62246.0,62242.0,0.6132978]
[1728466919735,0.01078464,62246.0,62242.0,0.6963978]
[1728466920432,0.01078464,62246.0,62242.0,0.64843815]
[1728466921264,0.01078464,62246.0,62242.0,0.7013978]
[1728466921484,0.01078464,62246.0,62242.0,0.65343815]
[1728466921710,0.01078464,62246.0,62242.0,0.7013978]
[1728466921913,0.01078464,62246.0,62242.0,0.7941978]
[1728466923056,0.01078464,62246.0,62242.0,0.67293609]
[1728466923263,0.01078464,62246.0,62242.0,0.7941978]
[1728466923487,0.01078464,62246.0,62242.0,0.74623815]
[1728466924148,0.0110342,62248.0,62247.0,0.25426171]
[1728466924374,0.0110342,62248.0,62247.0,0.75193746]
[1728466924596,0.0110342,62248.0,62247.0,0.74872515]
[1728466925026,0.0110342,62248.0,62247.0,0.82061041]
[1728466925254,0.0110342,62248.0,62247.0,0.74872515]
[1728466925466,0.0110342,62248.0,62247.0,0.79663861]
[1728466927533,0.0110342,62248.0,62247.0,0.74872515]
[1728466928190,0.0110342,62248.0,62247.0,0.7527817]
[1728466928407,0.0110342,62248.0,62247.0,0.7477817]
[1728466928620,0.0110342,62248.0,62247.0,0.7527817]
[1728466929323,0.0110342,62248.0,62247.0,0.5743817]
[1728466930199,0.0118552,62248.0,62247.0,0.5743817]
[1728466939863,0.0118552,62248.0,62247.0,0.45311999]
[1728466940069,0.0118552,62248.0,62247.0,0.5743817]
[1728466945301,0.0118552,62248.0,62247.0,0.62224908]
[1728466947425,0.0118552,62248.0,62247.0,0.5743817]
[1728466948662,0.0118552,62248.0,62247.0,0.64618278]
[1728466950326,0.0118552,62248.0,62247.0,0.5743817]
[1728466952389,0.0118552,62248.0,62247.0,0.67011647]
[1728466953049,0.0118552,62248.0,62247.0,0.67035197]
[1728466955443,0.0118552,62248.0,62247.0,0.5743817]
[1728466957360,0.0118552,62248.0,62247.0,0.5693817]
[1728466962329,0.0118552,62248.0,62247.0,0.71333711]
[1728466963825,0.0118552,62248.0,62247.0,0.5693817]
[1728466967276,0.0118552,62248.0,62247.0,0.71333711]
[1728466968512,0.0118552,62248.0,62247.0,0.89312931]
[1728466969499,0.0118552,62248.0,62247.0,0.7538817]
[1728466972262,0.0118552,62248.0,62247.0,0.7548817]
[1728466972711,0.0118552,62248.0,62247.0,0.6551817]
[1728466972922,0.0118552,62248.0,62247.0,0.6541817]
[1728466973372,0.0118552,62248.0,62247.0,0.6551817]
[1728466973588,0.0118552,62248.0,62247.0,0.6541817]
[1728466973810,0.0118552,62248.0,62247.0,0.5743817]
[1728466974039,0.0118552,62248.0,62247.0,0.5753817]
[1728466974927,0.0118552,62248.0,62247.0,0.71968242]
[1728466975135,0.0118552,62248.0,62247.0,0.71868242]
[1728466976198,0.0128552,62248.0,62247.0,0.71868242]
[1728466978373,0.0128552,62248.0,62247.0,0.71870563]
[1728466978787,0.0118552,62248.0,62247.0,0.71870563]
[1728466979201,0.0128552,62248.0,62247.0,0.71870563]
[1728466980713,0.02263303,62260.0,62247.0,0.4137317]
[1728466980922,0.02263303,62260.0,62259.0,0.12126171]
[1728466981947,0.02263303,62260.0,62259.0,0.12626171]
[1728466982412,0.02263303,62260.0,62259.0,0.13426171]
[1728466982888,0.02263303,62260.0,62259.0,0.14126171]
[1728466983843,0.02263303,62260.0,62259.0,0.30188071]
[1728466983844,0.12123303,62260.0,62259.0,0.30188071]
[1728466984080,0.12123303,62260.0,62259.0,0.14126171]
[1728466984766,0.12123303,62260.0,62259.0,0.29667515]
[1728466986108,0.12649518,62260.0,62259.0,0.29667515]
[1728466986904,0.12123303,62260.0,62259.0,0.29667515]
[1728466987912,0.12123303,62260.0,62259.0,0.30082155]
[1728466988819,0.12649692,62260.0,62259.0,0.30082155]
[1728466990457,0.12649692,62260.0,62259.0,0.30246155]
[1728466990660,0.12731692,62260.0,62259.0,0.30246155]
[1728466994654,0.12731692,62260.0,62259.0,0.29546155]
[1728466994835,0.12731692,62260.0,62259.0,0.17419984]
[1728466995072,0.12731692,62260.0,62259.0,0.17219984]
[1728466995489,0.12731692,62260.0,62259.0,0.17319984]
[1728466995696,0.12731692,62260.0,62259.0,0.17919984]
[1728466999197,0.10468389,62260.0,62259.0,0.17919984]
[1728467001253,0.00608389,62260.0,62259.0,0.17919984]
[1728467002350,0.17043735,62260.0,62259.0,0.17505344]
[1728467002620,0.34013735,62260.0,62259.0,0.01464]
[1728467002802,0.43058721,62260.0,62259.0,0.01464]
[1728467003664,0.33639989,62260.0,62259.0,0.01464]
[1728467004905,0.3615713,62260.0,62259.0,0.01464]
[1728467005217,0.3615713,62260.0,62259.0,0.00864]
[1728467005405,0.3645713,62260.0,62259.0,0.00164]
[1728467005640,0.3665713,62260.0,62259.0,0.00164]
[1728467006419,0.34139989,62260.0,62259.0,0.00164]
[1728467006653,0.33639989,62260.0,62259.0,0.00164]
[1728467006890,0.34139989,62260.0,62259.0,0.00164]
[1728467012294,0.33939989,62260.0,62259.0,0.00164]
[1728467013030,0.33639989,62260.0,62259.0,0.00164]
[1728467013232,0.33739989,62260.0,62259.0,0.00164]
[1728467017179,0.33991564,62260.0,62259.0,0.00164]
[1728467019947,0.33991564,62260.0,62259.0,0.00164]
[1728467031020,0.26291564,62260.0,62259.0,0.00164]
[1728467031232,0.2666531,62260.0,62259.0,0.00164]
[1728467034418,0.1739531,62260.0,62259.0,0.00164]
[1728467034664,0.17021564,62260.0,62259.0,0.00164]
[1728467035344,0.16921564,62260.0,62259.0,0.00164]
[1728467036022,0.16921564,62260.0,62259.0,0.00364]
[1728467036646,0.16921564,62260.0,62259.0,0.00464]
[1728467039802,0.1729531,62260.0,62259.0,0.00464]
[1728467045798,0.00859964,62260.0,62259.0,0.62253415]
[1728467046224,0.00082,62260.0,62259.0,0.62253415]
[1728467046629,0.00082,62260.0,62259.0,0.69466787]
[1728467046837,0.00082,62260.0,62259.0,0.62253415]
[1728467047654,0.00082,62260.0,62259.0,0.67060434]
[1728467048326,0.00082,62260.0,62259.0,0.62253415]
[1728467049107,0.00082,62260.0,62259.0,0.72253415]
[1728467049919,0.00082,62260.0,62259.0,0.59827244]
[1728467050078,0.00082,62260.0,62259.0,0.72533603]
[1728467050291,0.00082,62260.0,62259.0,0.73133603]
[1728467050487,0.00082,62260.0,62259.0,0.72553415]
[1728467050786,0.00382,62260.0,62259.0,0.71953415]
[1728467051214,0.00082,62260.0,62259.0,0.71953415]
[1728467051642,0.00082,62260.0,62259.0,0.8155245]
[1728467052292,0.00282,62260.0,62259.0,0.8155245]
[1728467052504,0.00282,62260.0,62259.0,0.71953415]
[1728467052724,0.00082,62260.0,62259.0,0.71953415]
[1728467053138,0.00182,62260.0,62259.0,0.71953415]
[1728467053344,0.00182,62260.0,62259.0,0.60650374]
[1728467053580,0.00182,62260.0,62259.0,0.72776545]
[1728467054651,0.00182,62260.0,62259.0,0.79973747]
[1728467054898,0.00182,62260.0,62259.0,0.67847576]
[1728467055101,0.00182,62260.0,62259.0,0.79973747]
[1728467055325,0.00082,62260.0,62259.0,0.79973747]
[1728467055546,0.00282,62260.0,62259.0,0.72776545]
[1728467055761,0.00282,62260.0,62259.0,0.49384851]
[1728467055996,0.00382,62260.0,62259.0,0.43765344]
[1728467056212,0.00182,62260.0,62259.0,0.43765344]
[1728467056415,0.01062761,62260.0,62259.0,0.43265344]
[1728467056621,0.01162761,62260.0,62259.0,0.43765344]
[1728467057459,0.01162761,62260.0,62259.0,0.59827244]
[1728467057692,0.00382,62260.0,62259.0,0.59827244]
[1728467058165,0.00382,62260.0,62259.0,0.43765344]
[1728467062557,0.00382,62260.0,62259.0,0.59827244]
[1728467063232,0.00182,62260.0,62259.0,0.59827244]
[1728467063461,0.00282,62260.0,62259.0,0.59827244]
[1728467063721,0.00382,62260.0,62259.0,0.59827244]
[1728467065541,0.00082,62260.0,62259.0,0.59827244]
[1728467065738,0.00082,62260.0,62259.0,0.60527244]
[1728467065979,0.00082,62260.0,62259.0,0.60327244]
[1728467066476,0.00582,62260.0,62259.0,0.59827244]
[1728467066721,0.00782,62260.0,62259.0,0.59827244]
[1728467070824,0.00782,62260.0,62259.0,0.71953415]
[1728467072030,0.00582,62260.0,62259.0,0.71953415]
[1728467072243,0.01082,62260.0,62259.0,0.71953415]
[1728467072448,0.00582,62260.0,62259.0,0.71953415]
[1728467072792,0.00982,62260.0,62259.0,0.71953415]
[1728467077457,0.00582,62260.0,62259.0,0.71953415]
[1728467077678,0.00082,62260.0,62259.0,0.71953415]
[1728467077921,0.00982,62260.0,62259.0,0.71953415]
[1728467078459,0.00958588,62260.0,62259.0,0.71953415]
[1728467079714,0.00958588,62260.0,62259.0,0.76753357]
[1728467081566,0.00958588,62260.0,62259.0,0.71953415]
[1728467084762,0.00958588,62260.0,62259.0,0.79157222]
[1728467086898,0.00958588,62260.0,62259.0,0.76760218]
[1728467087132,0.00958588,62260.0,62259.0,0.30822383]
[1728467088268,0.00958588,62260.0,62259.0,0.21012383]
[1728467088835,0.00958588,62260.0,62259.0,0.34275344]
[1728467089034,0.00958588,62260.0,62259.0,0.50337244]
[1728467089252,0.00958588,62260.0,62259.0,0.34275344]
[1728467089938,0.01740391,62260.0,62259.0,0.34275344]
[1728467090694,0.01740391,62260.0,62259.0,0.39082383]
[1728467091543,0.01740391,62260.0,62259.0,0.55144283]
[1728467091969,0.00958588,62260.0,62259.0,0.55144283]
[1728467092186,0.00958588,62260.0,62259.0,0.55147836]
[1728467092611,0.00558588,62260.0,62259.0,0.55147836]
[1728467092837,0.00058588,62260.0,62259.0,0.55147836]
[1728467093034,0.00258588,62260.0,62259.0,0.57847836]
[1728467097339,0.00258588,62260.0,62259.0,0.57848116]
[1728467097482,0.00258588,62260.0,62259.0,0.53037244]
[1728467097690,0.00258588,62260.0,62259.0,0.57848273]
[1728467098516,0.00258588,62260.0,62259.0,0.53037244]
[1728467099357,0.00258588,62260.0,62259.0,0.57848643]
[1728467100203,0.00258588,62260.0,62259.0,0.53037244]